[Event "Titled Tuesday Blitz November 01 Early 2022"]
[White "Goroshkov, Maksym"]
[Black "Hoffmann, Asa"]
[WhiteFideId "14142716"]
[BlackFideId "2001470"]
[WhiteElo "2257"]
[BlackElo "2117"]
[Result "1-0"]
[Round "10"]
[TimeControl "180+1"]
[Date "2022.11.02"]
[WhiteClock "0:00:20"]
[BlackClock "0:00:22"]

1. e4 {[%clk 0:02:59]}  d6 {[%clk 0:02:58]} 2. d4 {[%clk 0:03:00]}  Nf6 {[%clk 0:02:53]} 3. Bd3 {[%clk 0:03:00]}  e5 {[%clk 0:02:52]} 4. c3 {[%clk 0:03:00]}  Nc6 {[%clk 0:02:52]} 5. Ne2 {[%clk 0:02:59]}  Be7 {[%clk 0:02:51]} 6. O-O {[%clk 0:02:58]}  O-O {[%clk 0:02:51]} 7. Bg5 {[%clk 0:02:58]}  h6 {[%clk 0:02:49]} 8. Bxf6 {[%clk 0:02:58]}  Bxf6 {[%clk 0:02:49]} 9. d5 {[%clk 0:02:58]}  Ne7 {[%clk 0:02:48]} 10. Nd2 {[%clk 0:02:58]}  Ng6 {[%clk 0:02:47]} 11. Re1 {[%clk 0:02:56]}  Bd7 {[%clk 0:02:43]} 12. Nf1 {[%clk 0:02:56]}  Bg5 {[%clk 0:02:41]} 13. Ne3 {[%clk 0:02:54]}  Nf4 {[%clk 0:02:38]} 14. Nxf4 {[%clk 0:02:52]}  Bxf4 {[%clk 0:02:36]} 15. Qf3 {[%clk 0:02:52]}  Qg5 {[%clk 0:02:33]} 16. Nf1 {[%clk 0:02:49]}  f5 {[%clk 0:02:32]} 17. exf5 {[%clk 0:02:34]}  Bxf5 {[%clk 0:02:31]} 18. Bxf5 {[%clk 0:02:34]}  Rxf5 {[%clk 0:02:31]} 19. Qd3 {[%clk 0:02:32]}  Raf8 {[%clk 0:02:27]} 20. g3 {[%clk 0:02:31]}  Qg4 {[%clk 0:02:08]} 21. Qe2 {[%clk 0:01:35]}  Qxe2 {[%clk 0:02:04]} 22. Rxe2 {[%clk 0:01:36]}  Bg5 {[%clk 0:02:04]} 23. h4 {[%clk 0:01:29]}  Bd8 {[%clk 0:02:02]} 24. Ne3 {[%clk 0:01:28]}  Rf3 {[%clk 0:01:58]} 25. Kg2 {[%clk 0:01:28]}  c6 {[%clk 0:01:58]} 26. Rd1 {[%clk 0:01:25]}  c5 {[%clk 0:01:51]} 27. b4 {[%clk 0:01:22]}  Bb6 {[%clk 0:01:50]} 28. Nc4 {[%clk 0:01:18]}  Rxc3 {[%clk 0:01:48]} 29. Nxd6 {[%clk 0:01:17]}  cxb4 {[%clk 0:01:46]} 30. Ne4 {[%clk 0:01:16]}  Rcc8 {[%clk 0:01:38]} 31. d6 {[%clk 0:01:14]}  Rcd8 {[%clk 0:01:34]} 32. Rd5 {[%clk 0:01:11]}  Bd4 {[%clk 0:01:33]} 33. Rc2 {[%clk 0:01:07]}  Rf7 {[%clk 0:01:30]} 34. Rc4 {[%clk 0:01:02]}  Bc3 {[%clk 0:01:20]} 35. a3 {[%clk 0:00:53]}  Bd4 {[%clk 0:00:56]} 36. axb4 {[%clk 0:00:51]}  Rfd7 {[%clk 0:00:55]} 37. Ra5 {[%clk 0:00:41]}  a6 {[%clk 0:00:55]} 38. Nc5 {[%clk 0:00:37]}  Rxd6 {[%clk 0:00:50]} 39. Nxb7 {[%clk 0:00:37]}  R8d7 {[%clk 0:00:46]} 40. Nxd6 {[%clk 0:00:37]}  Rxd6 {[%clk 0:00:46]} 41. Rc8+ {[%clk 0:00:34]}  Kf7 {[%clk 0:00:46]} 42. Ra8 {[%clk 0:00:34]}  Rb6 {[%clk 0:00:45]} 43. Ra4 {[%clk 0:00:29]}  h5 {[%clk 0:00:38]} 44. Ra7+ {[%clk 0:00:27]}  Kg8 {[%clk 0:00:36]} 45. R7xa6 {[%clk 0:00:27]}  Rb5 {[%clk 0:00:36]} 46. R6a5 {[%clk 0:00:25]}  Rb7 {[%clk 0:00:35]} 47. Ra8+ {[%clk 0:00:25]}  Kh7 {[%clk 0:00:34]} 48. Rc8 {[%clk 0:00:23]}  Kg6 {[%clk 0:00:32]} 49. Rc6+ {[%clk 0:00:22]}  Kf5 {[%clk 0:00:31]} 50. Rc1 {[%clk 0:00:20]}  Ke4 {[%clk 0:00:31]} 51. Re1+ {[%clk 0:00:20]}  Kd5 {[%clk 0:00:31]} 52. Rb1 {[%clk 0:00:20]}  Rb5 {[%clk 0:00:30]} 53. Ra5 {[%clk 0:00:20]}  Kc6 {[%clk 0:00:29]} 54. Rxb5 {[%clk 0:00:19]}  Kxb5 {[%clk 0:00:29]} 55. f4 {[%clk 0:00:19]}  e4 {[%clk 0:00:28]} 56. Re1 {[%clk 0:00:18]}  e3 {[%clk 0:00:28]} 57. Rb1 {[%clk 0:00:18]}  g6 {[%clk 0:00:25]} 58. Kf3 {[%clk 0:00:19]}  Bb6 {[%clk 0:00:25]} 59. Rb3 {[%clk 0:00:18]}  Kc4 {[%clk 0:00:25]} 60. Rxe3 {[%clk 0:00:17]}  Bxe3 {[%clk 0:00:23]} 61. Kxe3 {[%clk 0:00:18]}  Kxb4 {[%clk 0:00:23]} 62. Kd4 {[%clk 0:00:18]}  Kb5 {[%clk 0:00:23]} 63. Ke5 {[%clk 0:00:19]}  Kc5 {[%clk 0:00:23]} 64. Kf6 {[%clk 0:00:19]}  Kd4 {[%clk 0:00:23]} 65. Kxg6 {[%clk 0:00:20]}  Ke3 {[%clk 0:00:22]} 66. Kxh5 {[%clk 0:00:20]} 1-0


[Site "https://www.chess.com"]

[Event "Titled Tuesday Blitz November 01 Early 2022"]
[White "Grover, Sahaj"]
[Black "Ozen, Bahadir"]
[WhiteFideId "5021103"]
[BlackFideId "6337058"]
[WhiteElo "2432"]
[BlackElo "2503"]
[Result "0-1"]
[Round "10"]
[TimeControl "180+1"]
[Date "2022.11.01"]
[WhiteClock "0:00:04"]
[BlackClock "0:00:30"]

1. e4 {[%clk 0:03:00]}  g6 {[%clk 0:03:00]} 2. d4 {[%clk 0:03:00]}  Bg7 {[%clk 0:03:00]} 3. Nc3 {[%clk 0:03:01]}  c6 {[%clk 0:03:00]} 4. Nf3 {[%clk 0:02:59]}  d6 {[%clk 0:03:00]} 5. h3 {[%clk 0:02:59]}  Nd7 {[%clk 0:03:00]} 6. a4 {[%clk 0:02:59]}  Qc7 {[%clk 0:02:59]} 7. Be2 {[%clk 0:02:59]}  Ngf6 {[%clk 0:03:00]} 8. O-O {[%clk 0:02:59]}  O-O {[%clk 0:03:00]} 9. Be3 {[%clk 0:02:51]}  b6 {[%clk 0:03:00]} 10. Qd2 {[%clk 0:02:49]}  a6 {[%clk 0:02:58]} 11. Bh6 {[%clk 0:02:49]}  Bb7 {[%clk 0:02:59]} 12. Rfe1 {[%clk 0:02:39]}  Rfd8 {[%clk 0:02:45]} 13. Qg5 {[%clk 0:02:37]}  b5 {[%clk 0:02:32]} 14. Bxg7 {[%clk 0:02:26]}  Kxg7 {[%clk 0:02:32]} 15. e5 {[%clk 0:02:27]}  b4 {[%clk 0:02:27]} 16. exf6+ {[%clk 0:02:01]}  exf6 {[%clk 0:02:26]} 17. Qd2 {[%clk 0:02:02]}  bxc3 {[%clk 0:02:26]} 18. Qxc3 {[%clk 0:02:03]}  c5 {[%clk 0:02:10]} 19. a5 {[%clk 0:01:52]}  Rac8 {[%clk 0:01:59]} 20. dxc5 {[%clk 0:01:02]}  Nxc5 {[%clk 0:01:36]} 21. Nd4 {[%clk 0:01:01]}  Qb8 {[%clk 0:01:22]} 22. Qb4 {[%clk 0:00:49]}  Ba8 {[%clk 0:01:07]} 23. c3 {[%clk 0:00:47]}  Qa7 {[%clk 0:01:02]} 24. Qb6 {[%clk 0:00:42]}  Qd7 {[%clk 0:01:01]} 25. b4 {[%clk 0:00:26]}  Rb8 {[%clk 0:01:02]} 26. bxc5 {[%clk 0:00:27]}  Rxb6 {[%clk 0:01:02]} 27. cxb6 {[%clk 0:00:27]}  Bb7 {[%clk 0:01:03]} 28. Bd3 {[%clk 0:00:15]}  Rc8 {[%clk 0:01:01]} 29. c4 {[%clk 0:00:15]}  d5 {[%clk 0:00:59]} 30. c5 {[%clk 0:00:09]}  Rxc5 {[%clk 0:00:58]} 31. Rec1 {[%clk 0:00:10]}  Rxc1+ {[%clk 0:00:53]} 32. Rxc1 {[%clk 0:00:11]}  Qa4 {[%clk 0:00:53]} 33. Ne6+ {[%clk 0:00:08]}  fxe6 {[%clk 0:00:50]} 34. Rc7+ {[%clk 0:00:08]}  Kh6 {[%clk 0:00:51]} 35. Rxb7 {[%clk 0:00:09]}  Qxa5 {[%clk 0:00:49]} 36. Rb8 {[%clk 0:00:07]}  Qa1+ {[%clk 0:00:47]} 37. Bf1 {[%clk 0:00:06]}  Qb1 {[%clk 0:00:41]} 38. g3 {[%clk 0:00:05]}  a5 {[%clk 0:00:40]} 39. b7 {[%clk 0:00:05]}  a4 {[%clk 0:00:40]} 40. Kg2 {[%clk 0:00:06]}  a3 {[%clk 0:00:35]} 41. Ra8 {[%clk 0:00:02]}  Qxb7 {[%clk 0:00:36]} 42. Rxa3 {[%clk 0:00:02]}  Qe7 {[%clk 0:00:37]} 43. Rf3 {[%clk 0:00:03]}  Kg7 {[%clk 0:00:37]} 44. Rb3 {[%clk 0:00:04]}  Qc7 {[%clk 0:00:36]} 45. Ba6 {[%clk 0:00:05]}  Qc6 {[%clk 0:00:37]} 46. Bd3 {[%clk 0:00:05]}  f5 {[%clk 0:00:34]} 47. Bb5 {[%clk 0:00:05]}  Qb6 {[%clk 0:00:33]} 48. Bc4 {[%clk 0:00:05]}  Qc6 {[%clk 0:00:34]} 49. Be2 {[%clk 0:00:05]}  Kf6 {[%clk 0:00:33]} 50. Bb5 {[%clk 0:00:06]}  Qc2 {[%clk 0:00:32]} 51. Re3 {[%clk 0:00:04]}  Qc7 {[%clk 0:00:31]} 52. Ba4 {[%clk 0:00:03]}  d4 {[%clk 0:00:30]} 53. Re2 {[%clk 0:00:03]}  Qb7+ {[%clk 0:00:29]} 54. Kh2 {[%clk 0:00:03]}  d3 {[%clk 0:00:29]} 55. Rd2 {[%clk 0:00:03]}  Qb4 {[%clk 0:00:30]} 56. Rxd3 {[%clk 0:00:03]}  Qxa4 {[%clk 0:00:30]} 57. Re3 {[%clk 0:00:04]}  Qd4 {[%clk 0:00:30]} 58. Kg2 {[%clk 0:00:04]}  e5 {[%clk 0:00:31]} 59. Ra3 {[%clk 0:00:04]}  Qd5+ {[%clk 0:00:30]} 0-1


[Site "https://www.chess.com"]

[Event "Titled Tuesday Blitz November 01 Early 2022"]
[White "Gu, Xiaobing"]
[Black "Odegov, Artem"]
[WhiteFideId "8602611"]
[BlackFideId "34183644"]
[WhiteElo "2174"]
[BlackElo "2298"]
[Result "1-0"]
[Round "10"]
[TimeControl "180+1"]
[Date "2022.11.02"]
[WhiteClock "0:00:32"]
[BlackClock "0:00:31"]

1. e4 {[%clk 0:03:00]}  e6 {[%clk 0:02:59]} 2. d4 {[%clk 0:02:59]}  d5 {[%clk 0:03:00]} 3. Nd2 {[%clk 0:02:54]}  Nf6 {[%clk 0:03:00]} 4. e5 {[%clk 0:02:53]}  Nfd7 {[%clk 0:03:00]} 5. Bd3 {[%clk 0:02:53]}  c5 {[%clk 0:03:00]} 6. c3 {[%clk 0:02:53]}  Nc6 {[%clk 0:03:01]} 7. Ne2 {[%clk 0:02:53]}  cxd4 {[%clk 0:03:02]} 8. cxd4 {[%clk 0:02:53]}  f6 {[%clk 0:03:03]} 9. exf6 {[%clk 0:02:45]}  Nxf6 {[%clk 0:03:04]} 10. O-O {[%clk 0:02:42]}  Bd6 {[%clk 0:03:04]} 11. Nf3 {[%clk 0:02:41]}  Qc7 {[%clk 0:03:04]} 12. Bg5 {[%clk 0:02:40]}  O-O {[%clk 0:03:04]} 13. Bh4 {[%clk 0:02:37]}  Ng4 {[%clk 0:02:52]} 14. Bg3 {[%clk 0:02:35]}  Bxg3 {[%clk 0:02:50]} 15. Nxg3 {[%clk 0:02:16]}  g6 {[%clk 0:02:50]} 16. Rc1 {[%clk 0:02:07]}  Bd7 {[%clk 0:02:47]} 17. h3 {[%clk 0:02:05]}  Nf6 {[%clk 0:02:34]} 18. Re1 {[%clk 0:01:58]}  Qf4 {[%clk 0:02:31]} 19. Bb5 {[%clk 0:01:44]}  Ne4 {[%clk 0:02:20]} 20. Bxc6 {[%clk 0:01:35]}  Bxc6 {[%clk 0:02:21]} 21. Ne2 {[%clk 0:01:20]}  Qh6 {[%clk 0:02:17]} 22. Ng3 {[%clk 0:01:17]}  Qf4 {[%clk 0:02:10]} 23. Ne2 {[%clk 0:01:14]}  Qh6 {[%clk 0:01:56]} 24. Rc2 {[%clk 0:01:10]}  Rf6 {[%clk 0:01:54]} 25. Ng3 {[%clk 0:01:09]}  Raf8 {[%clk 0:01:51]} 26. Nxe4 {[%clk 0:01:02]}  dxe4 {[%clk 0:01:52]} 27. Ne5 {[%clk 0:01:02]}  e3 {[%clk 0:01:41]} 28. Ng4 {[%clk 0:00:58]}  exf2+ {[%clk 0:01:39]} 29. Rxf2 {[%clk 0:00:58]}  Rxf2 {[%clk 0:01:39]} 30. Nxh6+ {[%clk 0:00:58]}  Kg7 {[%clk 0:01:36]} 31. Re2 {[%clk 0:00:44]}  Rxe2 {[%clk 0:01:26]} 32. Qxe2 {[%clk 0:00:44]}  Kxh6 {[%clk 0:01:27]} 33. Qxe6 {[%clk 0:00:44]}  Rf5 {[%clk 0:01:27]} 34. g4 {[%clk 0:00:41]}  Rd5 {[%clk 0:01:26]} 35. Qe7 {[%clk 0:00:41]}  Rd7 {[%clk 0:01:23]} 36. Qf8+ {[%clk 0:00:40]}  Kg5 {[%clk 0:01:22]} 37. Kf2 {[%clk 0:00:38]}  h5 {[%clk 0:01:10]} 38. Kg3 {[%clk 0:00:35]}  h4+ {[%clk 0:01:10]} 39. Kf2 {[%clk 0:00:35]}  a6 {[%clk 0:01:05]} 40. Ke3 {[%clk 0:00:33]}  Bd5 {[%clk 0:00:31]} 41. Qf4# {[%clk 0:00:32]} 1-0


[Site "https://www.chess.com"]

[Event "Titled Tuesday Blitz November 01 Early 2022"]
[White "Guz, Ari"]
[Black "Selkirk, Rebecca"]
[WhiteFideId "2825759"]
[BlackFideId "14306514"]
[WhiteElo "2205"]
[BlackElo "1649"]
[Result "1-0"]
[Round "10"]
[TimeControl "180+1"]
[Date "2022.11.02"]
[WhiteClock "0:01:10"]
[BlackClock "0:00:01"]

1. e4 {[%clk 0:03:00]}  c5 {[%clk 0:02:58]} 2. Nf3 {[%clk 0:02:59]}  e6 {[%clk 0:02:58]} 3. c3 {[%clk 0:03:00]}  d5 {[%clk 0:02:57]} 4. exd5 {[%clk 0:03:00]}  exd5 {[%clk 0:02:58]} 5. d4 {[%clk 0:03:01]}  Nc6 {[%clk 0:02:58]} 6. Bd3 {[%clk 0:03:00]}  Nf6 {[%clk 0:02:57]} 7. O-O {[%clk 0:03:00]}  Be6 {[%clk 0:02:57]} 8. Bg5 {[%clk 0:02:59]}  Be7 {[%clk 0:02:56]} 9. dxc5 {[%clk 0:03:00]}  Bxc5 {[%clk 0:02:55]} 10. Nbd2 {[%clk 0:02:59]}  O-O {[%clk 0:02:54]} 11. Qc2 {[%clk 0:02:58]}  h6 {[%clk 0:02:50]} 12. Bh4 {[%clk 0:02:57]}  Rc8 {[%clk 0:02:42]} 13. Rae1 {[%clk 0:02:48]}  Be7 {[%clk 0:02:39]} 14. Qb1 {[%clk 0:02:48]}  d4 {[%clk 0:02:26]} 15. c4 {[%clk 0:02:44]}  a6 {[%clk 0:02:25]} 16. a3 {[%clk 0:02:44]}  Re8 {[%clk 0:02:05]} 17. b4 {[%clk 0:02:38]}  Bg4 {[%clk 0:01:31]} 18. h3 {[%clk 0:02:25]}  Be6 {[%clk 0:01:27]} 19. Qb2 {[%clk 0:02:11]}  Qd7 {[%clk 0:00:59]} 20. Bb1 {[%clk 0:01:38]}  Bf5 {[%clk 0:00:25]} 21. Bxf5 {[%clk 0:01:25]}  Qxf5 {[%clk 0:00:25]} 22. Nxd4 {[%clk 0:01:24]}  Qf4 {[%clk 0:00:20]} 23. Nxc6 {[%clk 0:01:22]}  bxc6 {[%clk 0:00:15]} 24. Bg3 {[%clk 0:01:20]}  Qg5 {[%clk 0:00:11]} 25. c5 {[%clk 0:01:17]}  Nd5 {[%clk 0:00:08]} 26. Nf3 {[%clk 0:01:17]}  Qg6 {[%clk 0:00:08]} 27. Ne5 {[%clk 0:01:17]}  Qf5 {[%clk 0:00:07]} 28. Qb1 {[%clk 0:01:14]}  Qg5 {[%clk 0:00:06]} 29. Nf3 {[%clk 0:01:11]}  Qh5 {[%clk 0:00:04]} 30. Re5 {[%clk 0:01:10]}  Qg6 {[%clk 0:00:02]} 31. Qxg6 {[%clk 0:01:10]}  fxg6 {[%clk 0:00:03]} 32. Rfe1 {[%clk 0:01:10]}  Kf8 {[%clk 0:00:02]} 33. Nd4 {[%clk 0:01:10]}  Bf6 {[%clk 0:00:01]} 34. Rxe8+ {[%clk 0:01:10]}  Rxe8 {[%clk 0:00:02]} 35. Bd6+ {[%clk 0:01:10]}  Kf7 {[%clk 0:00:01]} 36. Rxe8 {[%clk 0:01:10]}  Kxe8 {[%clk 0:00:01]} 37. Nxc6 {[%clk 0:01:11]}  Bb2 {[%clk 0:00:01]} 38. a4 {[%clk 0:01:10]} 1-0


[Site "https://www.chess.com"]

[Event "Titled Tuesday Blitz November 01 Early 2022"]
[White "Ilkhomi, Jaloliddin"]
[Black "Rosenberg, Evan S"]
[WhiteFideId "14700948"]
[BlackFideId "2019299"]
[WhiteElo "2045"]
[BlackElo "2389"]
[Result "1-0"]
[Round "10"]
[TimeControl "180+1"]
[Date "2022.11.02"]
[WhiteClock "0:00:31"]
[BlackClock "0:00:01"]

1. d4 {[%clk 0:02:57]}  d5 {[%clk 0:02:59]} 2. Bf4 {[%clk 0:02:56]}  Nf6 {[%clk 0:02:55]} 3. e3 {[%clk 0:02:56]}  e6 {[%clk 0:02:51]} 4. Nd2 {[%clk 0:02:56]}  Bd6 {[%clk 0:02:48]} 5. Bg3 {[%clk 0:02:56]}  b6 {[%clk 0:02:32]} 6. c3 {[%clk 0:02:54]}  O-O {[%clk 0:02:31]} 7. Ngf3 {[%clk 0:02:54]}  c5 {[%clk 0:02:26]} 8. Bd3 {[%clk 0:02:54]}  cxd4 {[%clk 0:02:26]} 9. exd4 {[%clk 0:02:54]}  Ba6 {[%clk 0:02:25]} 10. Qe2 {[%clk 0:02:54]}  Bxd3 {[%clk 0:02:24]} 11. Qxd3 {[%clk 0:02:54]}  Qc7 {[%clk 0:02:19]} 12. O-O {[%clk 0:02:53]}  Bxg3 {[%clk 0:02:16]} 13. hxg3 {[%clk 0:02:54]}  Nbd7 {[%clk 0:02:15]} 14. Rae1 {[%clk 0:02:54]}  Rab8 {[%clk 0:02:14]} 15. Ne5 {[%clk 0:02:54]}  Nxe5 {[%clk 0:02:14]} 16. Rxe5 {[%clk 0:02:53]}  b5 {[%clk 0:02:13]} 17. f4 {[%clk 0:02:53]}  a5 {[%clk 0:02:00]} 18. f5 {[%clk 0:02:53]}  Ng4 {[%clk 0:01:53]} 19. Re2 {[%clk 0:02:51]}  b4 {[%clk 0:01:29]} 20. Rf4 {[%clk 0:02:16]}  h5 {[%clk 0:01:27]} 21. Nf3 {[%clk 0:02:07]}  bxc3 {[%clk 0:01:19]} 22. bxc3 {[%clk 0:02:08]}  Qc4 {[%clk 0:00:39]} 23. Qc2 {[%clk 0:01:58]}  Rb1+ {[%clk 0:00:39]} 24. Re1 {[%clk 0:01:40]}  Rxe1+ {[%clk 0:00:36]} 25. Nxe1 {[%clk 0:01:41]}  Rc8 {[%clk 0:00:30]} 26. fxe6 {[%clk 0:01:40]}  fxe6 {[%clk 0:00:30]} 27. Rf3 {[%clk 0:01:35]}  e5 {[%clk 0:00:25]} 28. Qf5 {[%clk 0:01:17]}  Rc7 {[%clk 0:00:25]} 29. Qxh5 {[%clk 0:01:07]}  Nf6 {[%clk 0:00:25]} 30. Qxe5 {[%clk 0:01:06]}  Rf7 {[%clk 0:00:18]} 31. g4 {[%clk 0:00:57]}  Qc7 {[%clk 0:00:12]} 32. g5 {[%clk 0:00:42]}  Qxe5 {[%clk 0:00:10]} 33. dxe5 {[%clk 0:00:43]}  Ne4 {[%clk 0:00:09]} 34. Rd3 {[%clk 0:00:40]}  Rf5 {[%clk 0:00:07]} 35. Nf3 {[%clk 0:00:40]}  Nxg5 {[%clk 0:00:06]} 36. Nxg5 {[%clk 0:00:39]}  Rxg5 {[%clk 0:00:06]} 37. Rxd5 {[%clk 0:00:40]}  a4 {[%clk 0:00:07]} 38. Ra5 {[%clk 0:00:40]}  Kf7 {[%clk 0:00:07]} 39. Kf2 {[%clk 0:00:40]}  Ke6 {[%clk 0:00:06]} 40. Ra6+ {[%clk 0:00:39]}  Kd5 {[%clk 0:00:05]} 41. Rxa4 {[%clk 0:00:39]}  Rf5+ {[%clk 0:00:04]} 42. Kg3 {[%clk 0:00:39]}  Rg5+ {[%clk 0:00:04]} 43. Kh3 {[%clk 0:00:39]}  Rh5+ {[%clk 0:00:04]} 44. Kg4 {[%clk 0:00:40]}  Rh2 {[%clk 0:00:04]} 45. g3 {[%clk 0:00:40]}  Rc2 {[%clk 0:00:02]} 46. Ra5+ {[%clk 0:00:39]}  Ke6 {[%clk 0:00:03]} 47. Rc5 {[%clk 0:00:38]}  Rxa2 {[%clk 0:00:03]} 48. Kg5 {[%clk 0:00:38]}  Rg2 {[%clk 0:00:02]} 49. g4 {[%clk 0:00:39]}  Rg3 {[%clk 0:00:02]} 50. c4 {[%clk 0:00:39]}  Rg2 {[%clk 0:00:02]} 51. Kh5 {[%clk 0:00:38]}  Rh2+ {[%clk 0:00:02]} 52. Kg6 {[%clk 0:00:38]}  Rg2 {[%clk 0:00:02]} 53. g5 {[%clk 0:00:39]}  Rg4 {[%clk 0:00:02]} 54. Ra5 {[%clk 0:00:30]}  Rxc4 {[%clk 0:00:01]} 55. Kxg7 {[%clk 0:00:31]}  Rg4 {[%clk 0:00:01]} 56. Kg6 {[%clk 0:00:31]} 1-0


[Site "https://www.chess.com"]

[Event "Titled Tuesday Blitz November 01 Early 2022"]
[White "Jakubowski, Krzysztof"]
[Black "Devaev, Alexander"]
[WhiteFideId "1112848"]
[BlackFideId "4169395"]
[WhiteElo "2373"]
[BlackElo "2225"]
[Result "1-0"]
[Round "10"]
[TimeControl "180+1"]
[Date "2022.11.02"]
[WhiteClock "0:00:57"]
[BlackClock "0:00:03"]

1. d4 {[%clk 0:03:00]}  Nf6 {[%clk 0:02:57]} 2. c4 {[%clk 0:02:59]}  e6 {[%clk 0:02:57]} 3. Nc3 {[%clk 0:02:58]}  Bb4 {[%clk 0:02:57]} 4. Qc2 {[%clk 0:02:56]}  d5 {[%clk 0:02:52]} 5. cxd5 {[%clk 0:02:53]}  exd5 {[%clk 0:02:48]} 6. Bg5 {[%clk 0:02:49]}  O-O {[%clk 0:02:48]} 7. a3 {[%clk 0:02:47]}  Bxc3+ {[%clk 0:02:48]} 8. Qxc3 {[%clk 0:02:48]}  c6 {[%clk 0:02:45]} 9. e3 {[%clk 0:02:46]}  Bf5 {[%clk 0:02:42]} 10. Bd3 {[%clk 0:02:40]}  Bxd3 {[%clk 0:02:41]} 11. Qxd3 {[%clk 0:02:41]}  Nbd7 {[%clk 0:02:41]} 12. Nf3 {[%clk 0:02:40]}  h6 {[%clk 0:02:41]} 13. Bh4 {[%clk 0:02:37]}  Re8 {[%clk 0:02:42]} 14. O-O {[%clk 0:02:37]}  a6 {[%clk 0:02:42]} 15. Rfc1 {[%clk 0:02:34]}  Qb6 {[%clk 0:02:40]} 16. Rab1 {[%clk 0:02:32]}  a5 {[%clk 0:02:39]} 17. b4 {[%clk 0:02:30]}  axb4 {[%clk 0:02:23]} 18. axb4 {[%clk 0:02:28]}  Rec8 {[%clk 0:01:48]} 19. Bxf6 {[%clk 0:02:20]}  Nxf6 {[%clk 0:01:46]} 20. Ne5 {[%clk 0:02:19]}  Ra2 {[%clk 0:01:12]} 21. Qf5 {[%clk 0:02:06]}  Rca8 {[%clk 0:01:00]} 22. h4 {[%clk 0:01:42]}  h5 {[%clk 0:00:43]} 23. b5 {[%clk 0:01:37]}  cxb5 {[%clk 0:00:42]} 24. Rc8+ {[%clk 0:01:36]}  Rxc8 {[%clk 0:00:41]} 25. Qxc8+ {[%clk 0:01:37]}  Kh7 {[%clk 0:00:41]} 26. Nxf7 {[%clk 0:01:33]}  Qc6 {[%clk 0:00:30]} 27. Ng5+ {[%clk 0:01:18]}  Kg6 {[%clk 0:00:29]} 28. Qf8 {[%clk 0:01:12]}  Qd7 {[%clk 0:00:25]} 29. Rc1 {[%clk 0:01:07]}  Qf5 {[%clk 0:00:13]} 30. Nf3 {[%clk 0:01:06]}  Qe6 {[%clk 0:00:04]} 31. Ne5+ {[%clk 0:01:00]}  Kh7 {[%clk 0:00:04]} 32. Rc7 {[%clk 0:00:58]}  Ra1+ {[%clk 0:00:03]} 33. Kh2 {[%clk 0:00:57]}  Ng4+ {[%clk 0:00:03]} 34. Kg3 {[%clk 0:00:57]} 1-0


[Site "https://www.chess.com"]

[Event "Titled Tuesday Blitz November 01 Early 2022"]
[White "Jia, Haoxiang"]
[Black "Kirillov, Dmitry"]
[WhiteFideId "8602999"]
[BlackFideId "34180572"]
[WhiteElo "2647"]
[BlackElo "2095"]
[Result "0-1"]
[Round "10"]
[TimeControl "180+1"]
[Date "2022.11.02"]
[WhiteClock "0:01:21"]
[BlackClock "0:00:26"]

1. e4 {[%clk 0:03:00]}  c6 {[%clk 0:02:48]} 2. d4 {[%clk 0:02:59]}  d5 {[%clk 0:02:48]} 3. e5 {[%clk 0:02:58]}  c5 {[%clk 0:02:48]} 4. dxc5 {[%clk 0:02:51]}  Nc6 {[%clk 0:02:49]} 5. Bb5 {[%clk 0:02:42]}  e6 {[%clk 0:02:49]} 6. Nf3 {[%clk 0:02:42]}  Bxc5 {[%clk 0:02:47]} 7. O-O {[%clk 0:02:42]}  Ne7 {[%clk 0:02:47]} 8. c4 {[%clk 0:02:38]}  a6 {[%clk 0:02:44]} 9. Bxc6+ {[%clk 0:02:35]}  bxc6 {[%clk 0:02:43]} 10. Nc3 {[%clk 0:02:35]}  O-O {[%clk 0:02:41]} 11. Bg5 {[%clk 0:02:31]}  h6 {[%clk 0:02:31]} 12. Bh4 {[%clk 0:02:29]}  Rb8 {[%clk 0:02:27]} 13. Qc2 {[%clk 0:02:28]}  Qc7 {[%clk 0:02:22]} 14. a3 {[%clk 0:02:23]}  Nf5 {[%clk 0:02:18]} 15. Bg3 {[%clk 0:02:18]}  Nd4 {[%clk 0:01:55]} 16. Nxd4 {[%clk 0:02:06]}  Bxd4 {[%clk 0:01:56]} 17. Rfe1 {[%clk 0:02:07]}  a5 {[%clk 0:01:50]} 18. Rac1 {[%clk 0:01:59]}  Ba6 {[%clk 0:01:45]} 19. cxd5 {[%clk 0:01:58]}  cxd5 {[%clk 0:01:45]} 20. Nxd5 {[%clk 0:01:58]}  Qxc2 {[%clk 0:01:34]} 21. Ne7+ {[%clk 0:01:58]}  Kh7 {[%clk 0:01:34]} 22. Rxc2 {[%clk 0:01:59]}  Rxb2 {[%clk 0:01:33]} 23. Rec1 {[%clk 0:01:52]}  Rxc2 {[%clk 0:01:30]} 24. Rxc2 {[%clk 0:01:52]}  Rb8 {[%clk 0:01:29]} 25. h4 {[%clk 0:01:52]}  Rb1+ {[%clk 0:01:20]} 26. Kh2 {[%clk 0:01:52]}  a4 {[%clk 0:01:21]} 27. Nc6 {[%clk 0:01:49]}  Bb2 {[%clk 0:01:08]} 28. Nb4 {[%clk 0:01:41]}  Bb5 {[%clk 0:01:08]} 29. f3 {[%clk 0:01:28]}  Bxa3 {[%clk 0:01:04]} 30. Nc6 {[%clk 0:01:28]}  Rc1 {[%clk 0:00:31]} 31. Rxc1 {[%clk 0:01:22]}  Bxc1 {[%clk 0:00:32]} 32. Nd4 {[%clk 0:01:22]}  a3 {[%clk 0:00:28]} 33. Be1 {[%clk 0:01:21]}  Bb2 {[%clk 0:00:26]} 0-1


[Site "https://www.chess.com"]